Workbook

Sheet Hoja1
B1: Pnos L1 | C1: Pnos L2 | D1: Pnos L3 | E1: p35S L1 | F1: p35S L2 | G1: p35S L3 | H1: mDFR gX L1 | I1: mDFR gX L2 | J1: mDFR gX L3 | K1: mDFR g1 L1 | L1: mDFR g1 L2 | M1: mDFR g1 L3 | N1: mANS gX L1 | O1: mANS gX L2 | P1: mANS gX L3 | Q1: mANS g1 L1 | R1: mANS g1 L2 | S1: mANS g1 L3 | T1: mCHS gX L1 | U1: mCHS gX L2 | V1: mCHS gX L3 | W1: mCHS g1 L1 | X1: mCHS g1 L2 | Y1: mCHS g1 L3 | Z1: mPCPS2 gX L1 | AA1: mPCPS2 gX L2 | AB1: mPCPS2 gX L3 | AC1: mPCPS2 g1 L1 | AD1: mPCPS2 g1 L2 | AE1: mPCPS2 g1 L3 | AF1: mTA29 gX L1 | AG1: mTA29 gX L2 | AH1: mTA29 gX L3 | AI1: mTA29 g1 L1 | AJ1: mTA29 g1 L2 | AK1: mTA29 g1 L3 | AL1: m2S3 gX L1 | AM1: m2S3 gX L2 | AN1: m2S3 gX L3 | AO1: m2S3 g1 L1 | AP1: m2S3 g1 L2 | AQ1: m2S3 g1 L3 | AR1: mPAF gX L1 | AS1: mPAF gX L2 | AT1: mPAF gX L3 | AU1: mPAF g1 L1 | AV1: mPAF g1 L2 | AW1: mPAF g1 L3 | AX1: mGPDA gX L1 | AY1: mGPDA gX L2 | AZ1: mGPDA gX L3 | BA1: mGPDA g1 L1 | BB1: mGPDA g1 L2 | BC1: mGPDA g1 L3
A2: Luc_Run1 | B2: 108888000 | C2: 115049000 | D2: 246076000 | E2: 1046770000 | F2: 749685000 | G2: 968565000 | H2: 128215 | I2: 11160.9 | J2: 39513.8 | K2: 1851640 | L2: 1645490 | M2: 2292250 | N2: 518190 | O2: 417795 | P2: 686535 | Q2: 526578000 | R2: 744507000 | S2: 1019600000 | T2: 1162310 | U2: 469851 | V2: 391750 | W2: 600017000 | X2: 1160720000 | Y2: 941327000 | Z2: 465374 | AA2: 950670 | AB2: 571526 | AC2: 690607000 | AD2: 722093000 | AE2: 736670000 | AF2: 942832 | AG2: 463026 | AH2: 795208 | AI2: 765832000 | AJ2: 1048150000 | AK2: 1136750000 | AL2: 747120 | AM2: 950729 | AN2: 793496 | AO2: 589709000 | AP2: 601268000 | AQ2: 572801000 | AR2: 701604 | AS2: 568380 | AT2: 192801000 | AU2: 267166000 | AV2: 848567000 | AW2: 956767000 | AX2: 60091.7 | AY2: 143778 | AZ2: 429829 | BA2: 9190450 | BB2: 24376100 | BC2: 17302300
A3: Luc_Run2 | B3: 59737200 | C3: 64754600 | D3: 125389000 | E3: 575793000 | F3: 374532000 | G3: 545793000 | H3: 78695.1 | I3: 7297.16 | J3: 24034.8 | K3: 1047570 | L3: 924302 | M3: 1202450 | N3: 300469 | O3: 231443 | P3: 398133 | Q3: 211378000 | R3: 354574000 | S3: 593523000 | T3: 687926 | U3: 298270 | V3: 226056 | W3: 235758000 | X3: 777414000 | Y3: 517594000 | Z3: 259980 | AA3: 542617 | AB3: 318103 | AC3: 768649000 | AD3: 344397000 | AE3: 377563000 | AF3: 500586 | AG3: 249134 | AH3: 443820 | AI3: 906626000 | AJ3: 635604000 | AK3: 701481000 | AL3: 404278 | AM3: 492742 | AN3: 431627 | AO3: 600690000 | AP3: 280774000 | AQ3: 276771000 | AR3: 376746 | AS3: 302968 | AT3: 107805000 | AU3: 133452000 | AV3: 469477000 | AW3: 573053000 | AX3: 32041.4 | AY3: 74071.6 | AZ3: 222441 | BA3: 4536950 | BB3: 12309800 | BC3: 8626710
A4: Luc_Run3 | B4: 32402600 | C4: 35916900 | D4: 73751200 | E4: 298834000 | F4: 194595000 | G4: 288185000 | H4: 51883.1 | I4: 4277.18 | J4: 14909.6 | K4: 562612 | L4: 501640 | M4: 626609 | N4: 163184 | O4: 121282 | P4: 222337 | Q4: 135718000 | R4: 182420000 | S4: 324277000 | T4: 387382 | U4: 174420 | V4: 131007 | W4: 156952000 | X4: 494479000 | Y4: 278828000 | Z4: 142474 | AA4: 295853 | AB4: 181177 | AC4: 495864000 | AD4: 182933000 | AE4: 202699000 | AF4: 266765 | AG4: 130581 | AH4: 255302 | AI4: 627507000 | AJ4: 376388000 | AK4: 414481000 | AL4: 218006 | AM4: 256662 | AN4: 243549 | AO4: 262360000 | AP4: 159627000 | AQ4: 159936000 | AR4: 205507 | AS4: 162022 | AT4: 65064200 | AU4: 85746300 | AV4: 253285000 | AW4: 341688000 | AX4: 17239.3 | AY4: 38994.8 | AZ4: 119873 | BA4: 2286550 | BB4: 6641490 | BC4: 4492360
A5: Luc_Media | B5: =AVERAGE(B2:B4) -> 67009266.67 | C5: =AVERAGE(C2:C4) -> 71906833.33 | D5: 148405400 | E5: 640465666.7 | F5: 439604000 | G5: 600847666.7 | H5: 86264.4 | I5: 7578.413333 | J5: 26152.73333 | K5: =AVERAGE(K2:K4) -> 1153940.667 | L5: 1023810.667 | M5: 1373769.667 | N5: 327281 | O5: 256840 | P5: 435668.3333 | Q5: 291224666.7 | R5: 427167000 | S5: 645800000 | T5: 745872.6667 | U5: 314180.3333 | V5: 249604.3333 | W5: =AVERAGE(W2:W4) -> 330909000 | X5: 810871000 | Y5: 579249666.7 | Z5: 289276 | AA5: 596380 | AB5: 356935.3333 | AC5: 651706666.7 | AD5: 416474333.3 | AE5: 438977333.3 | AF5: 570061 | AG5: 280913.6667 | AH5: 498110 | AI5: 766655000 | AJ5: 686714000 | AK5: 750904000 | AL5: 456468 | AM5: 566711 | AN5: 489557.3333 | AO5: 484253000 | AP5: 347223000 | AQ5: 336502666.7 | AR5: 427952.3333 | AS5: 344456.6667 | AT5: =AVERAGE(AR5,AS5) -> 386204.5 | AU5: 162121433.3 | AV5: 523776333.3 | AW5: 623836000 | AX5: 36457.46667 | AY5: 85614.8 | AZ5: 257381 | BA5: 5337983.333 | BB5: 14442463.33 | BC5: 10140456.67
A6: Ren_Run1 | B6: 1228400000 | C6: 1384240000 | D6: 1216360000 | E6: 1015680000 | F6: 929566000 | G6: 1143340000 | H6: 2183520 | I6: 2808580 | J6: 2591290 | K6: 4291230 | L6: 3291890 | M6: 4798290 | N6: 482270000 | O6: 558186000 | P6: 335057000 | Q6: 175595000 | R6: 253696000 | S6: 370288000 | T6: 622351000 | U6: 92542900 | V6: 256095000 | W6: 94674500 | X6: 283713000 | Y6: 223163000 | Z6: 175320000 | AA6: 114473000 | AB6: 156885000 | AC6: 110210000 | AD6: 124413000 | AE6: 66599900 | AF6: 447751000 | AG6: 625260000 | AH6: 462758000 | AI6: 236507000 | AJ6: 233826000 | AK6: 332637000 | AL6: 50701200 | AM6: 77474300 | AN6: 41158000 | AO6: 350485000 | AP6: 218282000 | AQ6: 100807000 | AR6: 312721000 | AS6: 329047000 | AT6: 128870000 | AU6: 57691400 | AV6: 279730000 | AW6: 167075000 | AX6: 88630000 | AY6: 116293000 | AZ6: 253969000 | BA6: 134440000 | BB6: 213998000 | BC6: 157984000
A7: Ren_Run2 | B7: 572608000 | C7: 890583000 | D7: 595535000 | E7: 386949000 | F7: 322146000 | G7: 514666000 | H7: 818267 | I7: 1044560 | J7: 964417 | K7: 1629790 | L7: 1254340 | M7: 1784570 | N7: 137337000 | O7: 155662000 | P7: 108261000 | Q7: 68936100 | R7: 91198900 | S7: 118994000 | T7: 178925000 | U7: 36186900 | V7: 91544300 | W7: 37726900 | X7: 102655000 | Y7: 85071300 | Z7: 69746000 | AA7: 46265900 | AB7: 63652900 | AC7: 45430700 | AD7: 51792900 | AE7: 27005300 | AF7: 138620000 | AG7: 194086000 | AH7: 145450000 | AI7: 93656100 | AJ7: 93746100 | AK7: 119321000 | AL7: 21127100 | AM7: 32032900 | AN7: 16999300 | AO7: 126213000 | AP7: 90517000 | AQ7: 43926300 | AR7: 114402000 | AS7: 119036000 | AT7: 57019500 | AU7: 24494100 | AV7: 110440000 | AW7: 75574000 | AX7: 38770900 | AY7: 51852700 | AZ7: 104178000 | BA7: 61534700 | BB7: 92379800 | BC7: 71899300
A8: Ren_Run3 | B8: 241511000 | C8: 473632000 | D8: 254717000 | E8: 164760000 | F8: 142955000 | G8: 219189000 | H8: 415528 | I8: 519344 | J8: 483252 | K8: 831547 | L8: 644940 | M8: 908603 | N8: 74417200 | O8: 82215600 | P8: 57250300 | Q8: 36459300 | R8: 48157600 | S8: 64980800 | T8: 94452900 | U8: 18715000 | V8: 47804200 | W8: 19744300 | X8: 56135100 | Y8: 45895000 | Z8: 37337200 | AA8: 24634900 | AB8: 34121600 | AC8: 24580300 | AD8: 28323800 | AE8: 14432300 | AF8: 77377100 | AG8: 103607000 | AH8: 82181000 | AI8: 52165800 | AJ8: 53015100 | AK8: 68886800 | AL8: 11650000 | AM8: 17328900 | AN8: 9362910 | AO8: 73029000 | AP8: 51571500 | AQ8: 24537700 | AR8: 64479700 | AS8: 67780100 | AT8: 31995700 | AU8: 13503700 | AV8: 64123400 | AW8: 43858600 | AX8: 21720000 | AY8: 29404300 | AZ8: 60881900 | BA8: 35574500 | BB8: 54034400 | BC8: 41592600
A9: Ren_Media | B9: =AVERAGE(B6:B8) -> 680839666.7 | C9: =AVERAGE(C6:C8) -> 916151666.7 | D9: 688870666.7 | E9: 522463000 | F9: 464889000 | G9: 625731666.7 | H9: 1139105 | I9: 1457494.667 | J9: 1346319.667 | K9: =AVERAGE(K6:K8) -> 2250855.667 | L9: 1730390 | M9: 2497154.333 | N9: 231341400 | O9: 265354533.3 | P9: 166856100 | Q9: 93663466.67 | R9: 131017500 | S9: 184754266.7 | T9: 298576300 | U9: 49148266.67 | V9: 131814500 | W9: =AVERAGE(W6:W8) -> 50715233.33 | X9: 147501033.3 | Y9: 118043100 | Z9: 94134400 | AA9: 61791266.67 | AB9: 84886500 | AC9: 60073666.67 | AD9: 68176566.67 | AE9: 36012500 | AF9: 221249366.7 | AG9: 307651000 | AH9: 230129666.7 | AI9: 127442966.7 | AJ9: 126862400 | AK9: 173614933.3 | AL9: 27826100 | AM9: 42278700 | AN9: 22506736.67 | AO9: 183242333.3 | AP9: 120123500 | AQ9: 56423666.67 | AR9: 163867566.7 | AS9: 171954366.7 | AT9: 72628400 | AU9: 31896400 | AV9: 151431133.3 | AW9: 95502533.33 | AX9: 49706966.67 | AY9: 65850000 | AZ9: 139676300 | BA9: 77183066.67 | BB9: 120137400 | BC9: 90491966.67
A10: Ratio Luc/Ren (hoja) | B10: =B5/B9 -> 0.09842150795 | C10: =C5/C9 -> 0.07848791412 | D10: 0.2154328921 | E10: 1.225858418 | F10: 0.9456106727 | G10: 0.9602321549 | H10: 0.07572998099 | I10: 0.005199616511 | J10: 0.01942535193 | K10: =K5/K9 -> 0.5126675529 | L10: 0.5916646922 | M10: 0.5501340659 | N10: 0.001414710035 | O10: 0.000967912614 | P10: 0.002611042289 | Q10: 3.109266366 | R10: 3.260381247 | S10: 3.495453781 | T10: 0.00249809736 | U10: 0.006392500787 | V10: 0.001893603005 | W10: =W5/W9 -> 6.524844278 | X10: 5.497391996 | Y10: 4.90710314 | Z10: 0.003073010504 | AA10: 0.009651525728 | AB10: 0.004204853932 | AC10: 10.84845828 | AD10: 6.108760733 | AE10: 12.18958232 | AF10: 0.002576554268 | AG10: 0.0009130919993 | AH10: 0.00216447539 | AI10: 6.015671324 | AJ10: 5.413061711 | AK10: 4.325111818 | AL10: 0.01640431106 | AM10: 0.01340417279 | AN10: 0.02175159112 | AO10: 2.642691736 | AP10: 2.890550142 | AQ10: 5.963856774 | AR10: 0.002611574347 | AS10: 0.002003186504 | AT10: 0.005317541072 | AU10: 5.082750195 | AV10: 3.458841797 | AW10: 6.532140858 | AX10: 0.0007334478266 | AY10: 0.001300148823 | AZ10: 0.001842696291 | BA10: 0.06916003165 | BB10: 0.1202162135 | BC10: 0.112059192
A11: Media ratios (sample) | B11: =AVERAGE(B10:D10) -> 0.1307807714 | E11: =AVERAGE(E10:G10) -> 1.043900415 | H11: =AVERAGE(J10:L10) -> 0.3745858657 | K11: =AVERAGE(K10:M10) -> 0.5514887703 | N11: =AVERAGE(N10:P10) -> 0.001664554979 | Q11: =AVERAGE(Q10:S10) -> 3.288367131 | T11: =AVERAGE(T10:V10) -> 0.003594733717 | W11: =AVERAGE(W10:Y10) -> 5.643113138 | Z11: =AVERAGE(Z10:AB10) -> 0.005643130055 | AC11: =AVERAGE(AC10:AE10) -> 9.715600445 | AF11: =AVERAGE(AF10:AL10) -> 2.253700469 | AI11: =AVERAGE(AI10:AK10) -> 5.251281618 | AL11: =AVERAGE(AL10:AN10) -> 0.01718669165 | AO11: =AVERAGE(AO10:AQ10) -> 3.832366217 | AR11: =AVERAGE(AR10:AT10) -> 0.003310767308 | AU11: =AVERAGE(AU10:AW10) -> 5.024577617 | AX11: =AVERAGE(AX10:AZ10) -> 0.001292097647 | BA11: =AVERAGE(BA10:BC10) -> 0.1004784791
A12: Ratio Luc/Ren (hoja)/Media Luc/Ren (Pnos) | B12: =B10/$B$11 -> 0.7525686453 | C12: =C10/$B$11 -> 0.600148732 | D12: 1.647282623 | E12: 9.373384214 | F12: 7.230502333 | G12: 7.342303801 | H12: =L10/$B$11 -> 4.524095445 | I12: 0.03975826458 | J12: 0.1485337005 | K12: =K10/$B$11 -> 3.920052983 | L12: 4.524095445 | M12: 4.206536329 | N12: 0.0108174162 | O12: 0.007401031541 | P12: 0.01996503203 | Q12: 23.77464465 | R12: 24.93012705 | S12: 26.72758192 | T12: 0.01910141172 | U12: 0.04887951584 | V12: 0.01447921575 | W12: =W10/$B$11 -> 49.89146499 | X12: 42.03517029 | Y12: 37.52159502 | Z12: 0.0234974184 | AA12: 0.07379927206 | AB12: 0.0321519279 | AC12: 82.95147801 | AD12: 46.70993043 | AE12: 93.20622743 | AF12: 0.01970132337 | AG12: 0.006981852069 | AH12: =AL10/$B$11 -> 0.1254336619 | AI12: 45.99813306 | AJ12: 41.39034855 | AK12: 33.07146588 | AL12: 0.1254336619 | AM12: 0.1024934525 | AN12: 0.1663210186 | AO12: 20.20703585 | AP12: 22.10225641 | AQ12: 45.60193911 | AR12: 0.01996910034 | AS12: 0.01531713327 | AT12: 0.04065996106 | AU12: 38.86465985 | AV12: 26.44763263 | AW12: 49.94725745 | AX12: 0.005608223738 | AY12: 0.00994143718 | AZ12: 0.01408996347 | BA12: 0.5288241606 | BB12: 0.9192193338 | BC12: 0.8568476146
A13: DesvEst | B13: =STDEV(B12:D12) -> 0.565719942 | E13: =STDEV(E12:G12) -> 1.206215153 | H13: =STDEV(J12:L12) -> 2.371172902 | K13: =STDEV(K12:M12) -> 0.3021544298 | N13: =STDEV(N12:P12) -> 0.006496212585 | Q13: =STDEV(Q12:S12) -> 1.488053659 | T13: =STDEV(T12:V12) -> 0.01867030096 | W13: =STDEV(W12:Y12) -> 6.259757869 | Z13: =STDEV(Z12:AB12) -> 0.02689386018 | AC13: =STDEV(AC12:AE12) -> 24.42851916 | AF13: =STDEV(AF12:AL12) -> 21.75713199 | AI13: =STDEV(AI12:AK12) -> 6.551516509 | AL13: =STDEV(AL12:AN12) -> 0.03233158244 | AO13: =STDEV(AO12:AQ12) -> 14.14642511 | AR13: =STDEV(AR12:AT12) -> 0.0134908082 | AU13: =STDEV(AU12:AW12) -> 11.75612536 | AX13: =STDEV(AX12:AZ12) -> 0.004241204978 | BA13: =STDEV(BA12:BC12) -> 0.2097212471
A14: Luc/Ren(sample)/Luc/Ren(Pnos) | B14: =B11/$B$11 -> 1 | E14: =E11/$B$11 -> 7.982063449 | H14: =L11/$B$11 -> 0 | K14: =K11/$B$11 -> 4.216894919 | N14: =N11/$B$11 -> 0.01272782659 | Q14: =Q11/$B$11 -> 25.14411787 | T14: =T11/$B$11 -> 0.02748671444 | W14: =W11/$B$11 -> 43.1494101 | Z14: =Z11/$B$11 -> 0.04314953945 | AC14: =AC11/$B$11 -> 74.28921195 | AF14: =AF11/$B$11 -> 17.23265925 | AI14: =AI11/$B$11 -> 40.15331583 | AL14: =AL11/$B$11 -> 0.1314160444 | AO14: =AO11/$B$11 -> 29.30374379 | AR14: =AR11/$B$11 -> 0.02531539822 | AU14: =AU11/$B$11 -> 38.41984998 | AX14: =AX11/$B$11 -> 0.009879874796 | BA14: =BA11/$B$11 -> 0.7682970363
